[Event "WYCC 2018 O18"]
[Site "Halkidiki"]
[Date "2018.10.27"]
[Round "8"]
[White "Olimjonov, Sarvarbek"]
[Black "Martinez Fernandez, Adrian"]
[Result "1-0"]
[ECO "A01"]
[WhiteElo "2074"]
[BlackElo "2277"]
[Annotator "NA"]
[PlyCount "105"]
[EventDate "2018.10.20"]
[EventType "swiss"]
[EventCountry "GRE"]
[SourceTitle "playchess.com"]
[Source "ChessBase"]
[SourceQuality "1"]
[TimeControl "40/5400+30:1800+30"]

1. b3 {[%emt 0:00:54]} b6 {[%emt 0:05:01]} 2. Bb2 {[%emt 0:00:18]} Bb7 {[%emt 0:00:07]} 3. e3 {[%emt 0:00:09]} e6 4. d4 {[%emt 0:02:34]} Nf6 {[%emt 0:00:26]} 5. Nf3 {[%emt 0:00:19]} d6 {[%emt 0:02:55]} 6. Bd3 {[%emt 0:02:41]} Ne4 {[%emt 0:09:39]} 7. Nbd2 {[%emt 0:03:52]} f5 $14 {[%emt 0:00:09]} 8. c4 {[%emt 0:01:42]} Nd7 {[%emt 0:00:22]} 9. Qc2 {[%emt 0:04:29]} Nxd2 {[%emt 0:05:22]} 10. Qxd2 {[%emt 0:00:41]} Nf6 {[%emt 0:00:42]} 11. d5 {[%emt 0:08:49]} exd5 {[%emt 0:15:02]} 12. cxd5 {[%emt 0:07:27]} Bxd5 {[%emt 0:00:55]} 13. Bxf5 {[%emt 0:04:11]} g6 {[%emt 0:05:48]} 14. Bh3 {[%emt 0:11:30]} Bg7 {[%emt 0:04:12]} 15. Ng5 {[%emt 0:07:32]} c6 {[%emt 0:14:57]} 16. O-O {[%emt 0:02:33]} h6 {[%emt 0:04:26]} 17. e4 {[%emt 0:05:28]} Bg8 {[%emt 0:03:36]} 18. Nf3 {[%emt 0:05:09]} Bf7 {[%emt 0:04:23]} 19. Nd4 {[%emt 0:01:44]} c5 {[%emt 0:01:56]} 20. Nb5 {[%emt 0:01:46]} O-O {[%emt 0:00:28]} 21. f3 {[%emt 0:06:09]} Ne8 {[%emt 0:07:16]} 22. Bxg7 {[%emt 0:01:06]} Kxg7 {[%emt 0:00:01]} 23. Rad1 {[%emt 0:00:51]} d5 {[%emt 0:01:34]} 24. exd5 {[%emt 0:00:37]} Nd6 {[%emt 0:00:13]} 25. Nc3 {[%emt 0:01:30]} Re8 {[%emt 0:00:01]} 26. Rfe1 {[%emt 0:01:12]} Qh4 {[%emt 0:01:02]} 27. Be6 {[%emt 0:01:51]} Nf5 {[%emt 0:06:41]} 28. Nb5 {[%emt 0:06:00]} Rad8 {[%emt 0:01:59]} 29. Bxf7 {[%emt 0:03:41]} Kxf7 {[%emt 0:00:02]} 30. Rxe8 {[%emt 0:00:29]} Rxe8 {[%emt 0:00:01]} 31. g4 {[%emt 0:03:18]} Nd4 {[%emt 0:03:49]} 32. Nxd4 {[%emt 0:00:13]} cxd4 {[%emt 0:00:01]} 33. Qf2 {[%emt 0:00:24]} Qf6 {[%emt 0:02:44]} 34. Qxd4 {[%emt 0:00:20]} Qd6 {[%emt 0:00:30]} 35. Rd2 {[%emt 0:02:06]} Re1+ {[%emt 0:00:34]} 36. Kg2 {[%emt 0:00:12]} h5 {[%emt 0:00:16]} 37. g5 {[%emt 0:01:57]} Re5 {[%emt 0:00:38]} 38. f4 {[%emt 0:00:59]} Re1 {[%emt 0:00:30]} 39. h3 {[%emt 0:01:00]} Qe7 {[%emt 0:00:36]} 40. d6 {[%emt 0:00:00]} Re2+ {[%emt 0:00:00]} 41. Kf3 {[%emt 0:02:03]} Rxd2 {[%emt 0:00:33]} 42. Qxd2 {[%emt 0:00:07]} Qe6 {[%emt 0:02:31]} 43. Kg3 {[%emt 0:08:59]} Ke8 {[%emt 0:00:49]} 44. Qc3 {[%emt 0:02:42]} Qxd6 {[%emt 0:16:25]} 45. Qe5+ {[%emt 0:00:22]} Kd7 {[%emt 0:00:23]} 46. Qxd6+ {[%emt 0:00:23]} Kxd6 {[%emt 0:00:05]} 47. f5 {[%emt 0:00:16]} gxf5 {[%emt 0:00:18]} 48. Kf4 {[%emt 0:00:05]} Ke6 {[%emt 0:00:16]} 49. h4 {[%emt 0:00:03]} b5 {[%emt 0:00:48]} 50. b4 {[%emt 0:00:04]} a6 {[%emt 0:00:21]} 51. a3 {[%emt 0:00:03]} Kd5 {[%emt 0:00:03]} 52. Kxf5 {[%emt 0:00:05]} Kd6 {[%emt 0:00:35]} 53. Ke4 {Kd5+} 1-0

[Event "WYCC 2018 O18"]
[Site "Halkidiki"]
[Date "2018.10.27"]
[Round "8"]
[White "Gonzalez Carrillo, Javier Omar"]
[Black "Risting, Eivind Olav"]
[Result "0-1"]
[ECO "B10"]
[WhiteElo "2031"]
[BlackElo "2299"]
[Annotator "NA"]
[PlyCount "52"]
[EventDate "2018.10.20"]
[EventType "swiss"]
[EventCountry "GRE"]
[SourceTitle "playchess.com"]
[Source "ChessBase"]
[SourceQuality "1"]
[TimeControl "40/5400+30:1800+30"]

1. e4 {[%emt 0:00:03]} c6 {[%emt 0:00:00]} 2. Nc3 {[%emt 0:01:58]} d5 {[%emt 0:00:07]} 3. Nf3 {[%emt 0:00:05]} Nf6 {[%emt 0:02:41]} 4. Qe2 {[%emt 0:04:20]} Bg4 {[%emt 0:10:04]} 5. h3 {[%emt 0:02:53]} Bxf3 {[%emt 0:00:40]} 6. Qxf3 {[%emt 0:00:04]} e6 $11 {[%emt 0:04:16] LiveBook: 3 Games} 7. d3 {[%emt 0:07:53]} Nbd7 {[%emt 0:03:45]} 8. g3 {[%emt 0:03:55]} Bb4 {[%emt 0:02:18]} 9. Bd2 {[%emt 0:02:46]} d4 {[%emt 0:08:09]} 10. Nb1 {[%emt 0:00:22]} Qb6 {[%emt 0:00:45]} 11. c3 {[%emt 0:02:53]} Bc5 {[%emt 0:01:47]} 12. b3 {[%emt 0:06:27]} a5 {[%emt 0:01:26]} 13. Bg2 {[%emt 0:02:32]} Ne5 {[%emt 0:03:43]} 14. Qe2 {[%emt 0:01:02]} dxc3 {[%emt 0:00:24]} 15. Bxc3 {[%emt 0:09:10]} Bxf2+ {[%emt 0:00:33]} 16. Kf1 {[%emt 0:00:21]} Bd4 {[%emt 0:04:31]} 17. Qb2 {[%emt 0:07:12]} O-O-O {[%emt 0:03:06]} 18. Bxd4 {[%emt 0:04:38]} Qxd4 {[%emt 0:02:32]} 19. Qxd4 {[%emt 0:00:44]} Rxd4 {[%emt 0:00:06]} 20. Kf2 {[%emt 0:04:09]} Rxd3 {[%emt 0:00:43]} 21. Re1 {[%emt 0:00:40]} Rhd8 {[%emt 0:02:27]} 22. Na3 {[%emt 0:02:32]} Nh5 {[%emt 0:01:21]} 23. Re3 {[%emt 0:14:05]} Rxe3 {[%emt 0:00:35]} 24. Kxe3 {[%emt 0:00:02]} Rd3+ {[%emt 0:00:18]} 25. Kf2 {[%emt 0:00:15]} Rd2+ {[%emt 0:00:26]} 26. Kg1 {[%emt 0:04:16]} Nxg3 {[%emt 0:00:14]} 0-1

[Event "WYCC 2018 O18"]
[Site "Halkidiki"]
[Date "2018.10.27"]
[Round "8"]
[White "Talmaci, Alexandru"]
[Black "Veleshnja, Zino"]
[Result "1/2-1/2"]
[ECO "E11"]
[WhiteElo "2009"]
[BlackElo "2155"]
[Annotator "NA"]
[PlyCount "93"]
[EventDate "2018.10.20"]
[EventType "swiss"]
[EventCountry "GRE"]
[SourceTitle "playchess.com"]
[Source "ChessBase"]
[SourceQuality "1"]
[TimeControl "40/5400+30:1800+30"]

1. d4 {[%emt 0:00:00]} Nf6 {[%emt 0:00:00]} 2. c4 {[%emt 0:00:00]} e6 {[%emt 0:00:00]} 3. Nf3 {[%emt 0:01:02]} Bb4+ {[%emt 0:00:00]} 4. Nbd2 {[%emt 0:01:20]} b6 5. g3 {[%emt 0:09:43]} Bb7 {[%emt 0:00:00]} 6. Bg2 {[%emt 0:01:29]} d6 {[%emt 0:00:07]} 7. Qa4+ {[%emt 0:09:40]} Nc6 {[%emt 0:01:30]} 8. d5 {[%emt 0:09:16]} exd5 {[%emt 0:00:53]} 9. cxd5 {[%emt 0:00:13]} Nxd5 {[%emt 0:12:45]} 10. Nd4 {[%emt 0:08:00]} Qd7 {[%emt 0:05:13]} 11. Bxd5 {[%emt 0:02:10]} Nxd4 {[%emt 0:00:09]} 12. Qxd7+ {[%emt 0:00:06]} Kxd7 {[%emt 0:00:04]} 13. Bxb7 {[%emt 0:00:14]} Nc2+ {[%emt 0:17:52]} 14. Kd1 {[%emt 0:00:09]} Nxa1 {[%emt 0:00:05]} 15. Bxa8 {[%emt 0:00:12]} Rxa8 {[%emt 0:00:05]} 16. Nf3 {[%emt 0:04:10]} a5 {[%emt 0:03:46]} 17. Bd2 {[%emt 0:01:15]} Bc5 {[%emt 0:02:03]} 18. e3 {[%emt 0:01:08]} a4 {[%emt 0:03:43]} 19. Kc1 {[%emt 0:01:51]} Nb3+ {[%emt 0:03:34]} 20. axb3 {[%emt 0:00:06]} axb3 {[%emt 0:00:03]} 21. Kb1 {[%emt 0:00:05]} Re8 {[%emt 0:03:02]} 22. Bc3 {[%emt 0:03:27]} f6 {[%emt 0:07:26]} 23. Nd2 {[%emt 0:00:32]} b5 {[%emt 0:00:53]} 24. Nxb3 {[%emt 0:00:22]} Bb6 {[%emt 0:00:03]} 25. Kc2 {[%emt 0:01:45]} c5 {[%emt 0:00:14]} 26. Rd1 {[%emt 0:00:59]} b4 {[%emt 0:00:41]} 27. Be1 {[%emt 0:00:54]} Kc6 {[%emt 0:00:21]} 28. Nd2 {[%emt 0:01:51]} d5 {[%emt 0:03:14]} 29. Nf3 {[%emt 0:02:11]} Ra8 {[%emt 0:02:29]} 30. Kb1 {[%emt 0:10:47]} Ra4 {[%emt 0:02:21]} 31. b3 {[%emt 0:00:44]} Ra3 {[%emt 0:01:10]} 32. Kb2 {[%emt 0:00:34]} c4 {[%emt 0:00:41]} 33. bxc4 {[%emt 0:01:07]} dxc4 {[%emt 0:00:15]} 34. Nd4+ {[%emt 0:00:26]} Bxd4+ {[%emt 0:01:22]} 35. exd4 {[%emt 0:01:13]} c3+ {[%emt 0:04:19]} 36. Kc2 {[%emt 0:02:06]} Kd5 {[%emt 0:02:26]} 37. Kd3 {[%emt 0:01:43]} Ra2 {[%emt 0:05:19]} 38. Rc1 {[%emt 0:00:50]} f5 {[%emt 0:02:56]} 39. h4 {[%emt 0:00:45]} g6 {[%emt 0:00:15]} 40. f3 {[%emt 0:00:00]} h6 {[%emt 0:00:00]} 41. f4 {[%emt 0:08:13]} h5 {[%emt 0:00:57]} 42. Bxc3 {[%emt 0:07:28]} Ra3 {[%emt 0:08:11]} 43. Kd2 {[%emt 0:00:44]} bxc3+ {[%emt 0:00:06]} 44. Rxc3 {[%emt 0:00:06]} Ra4 {[%emt 0:00:29]} 45. Ke3 {[%emt 0:00:55]} Rxd4 {[%emt 0:04:01]} 46. Rd3 {[%emt 0:01:36]} Rxd3+ {[%emt 0:00:06]} 47. Kxd3 1/2-1/2

[Event "WYCC 2018 O18"]
[Site "Halkidiki"]
[Date "2018.10.27"]
[Round "8"]
[White "Manu David Suthandram R"]
[Black "Kandil, Adham"]
[Result "1/2-1/2"]
[ECO "A01"]
[WhiteElo "1970"]
[BlackElo "2292"]
[Annotator "NA"]
[PlyCount "72"]
[EventDate "2018.10.20"]
[EventType "swiss"]
[EventCountry "GRE"]
[SourceTitle "playchess.com"]
[Source "ChessBase"]
[SourceQuality "1"]
[TimeControl "40/5400+30:1800+30"]

1. b3 {[%emt 0:00:06]} Nf6 {[%emt 0:03:10]} 2. Bb2 {[%emt 0:00:08]} e6 {[%emt 0:00:05]} 3. e3 {[%emt 0:00:24]} Be7 {[%emt 0:00:23]} 4. Nf3 {[%emt 0:00:07]} c5 {[%emt 0:00:22]} 5. c4 {[%emt 0:01:31]} O-O 6. Be2 {[%emt 0:01:57]} d5 {[%emt 0:01:58]} 7. O-O {[%emt 0:00:46]} Nc6 {[%emt 0:02:14]} 8. d4 {[%emt 0:01:24]} cxd4 {[%emt 0:01:01]} 9. Nxd4 {[%emt 0:01:22]} Re8 {[%emt 0:04:09]} 10. Bf3 {[%emt 0:01:41]} Ne5 $11 {[%emt 0:06:09]} 11. Be2 {[%emt 0:00:09]} dxc4 {[%emt 0:01:43]} 12. bxc4 {[%emt 0:01:12]} Ned7 {[%emt 0:06:49]} 13. Nb5 {[%emt 0:06:29]} Qb6 {[%emt 0:05:59]} 14. Bd4 {[%emt 0:04:01]} Nc5 {[%emt 0:02:14]} 15. N1c3 {[%emt 0:09:22]} Qa5 {[%emt 0:00:51]} 16. Qe1 {[%emt 0:13:53]} Kf8 {[%emt 0:18:59]} 17. Be5 {[%emt 0:04:56]} Bd7 {[%emt 0:13:12]} 18. Nc7 {[%emt 0:09:04]} Nd3 {[%emt 0:01:03]} 19. Bxd3 {[%emt 0:00:57]} Qxe5 {[%emt 0:00:06]} 20. Nxe8 {[%emt 0:02:07]} Bxe8 {[%emt 0:00:36]} 21. f4 {[%emt 0:01:13]} Qh5 {[%emt 0:01:27]} 22. Qe2 {[%emt 0:03:45]} Bc5 {[%emt 0:04:24]} 23. Nd1 {[%emt 0:03:50]} Qh4 {[%emt 0:01:11]} 24. Rf3 {[%emt 0:02:35]} Bc6 {[%emt 0:01:32]} 25. Qf2 {[%emt 0:04:21]} Qxf2+ {[%emt 0:03:49]} 26. Rxf2 {[%emt 0:03:47]} Rd8 {[%emt 0:00:58]} 27. Bc2 {[%emt 0:02:33]} Ne4 {[%emt 0:03:13]} 28. Re2 {[%emt 0:00:30]} h6 {[%emt 0:00:51]} 29. Bxe4 {[%emt 0:01:10]} Bxe4 {[%emt 0:00:02]} 30. Nf2 {[%emt 0:00:07]} Bd3 {[%emt 0:01:38]} 31. Nxd3 {[%emt 0:02:36]} Rxd3 {[%emt 0:00:03]} 32. Kf2 {[%emt 0:00:05]} Rc3 {[%emt 0:00:06]} 33. Rd1 {[%emt 0:00:06]} Ke7 {[%emt 0:00:03]} 34. Kf3 {[%emt 0:03:48]} b6 {[%emt 0:00:09]} 35. g4 {[%emt 0:01:37]} a5 {[%emt 0:02:16]} 36. h4 {[%emt 0:00:12]} g6 1/2-1/2

[Event "WYCC 2018 O18"]
[Site "Halkidiki"]
[Date "2018.10.27"]
[Round "8"]
[White "Tanide, Gabriel Masaharu"]
[Black "Ranaldi, Lucas"]
[Result "0-1"]
[ECO "B20"]
[WhiteElo "1519"]
[BlackElo "2335"]
[Annotator "NA"]
[PlyCount "62"]
[EventDate "2018.10.20"]
[EventType "swiss"]
[EventCountry "GRE"]
[SourceTitle "playchess.com"]
[Source "ChessBase"]
[SourceQuality "1"]
[TimeControl "40/5400+30:1800+30"]

1. e4 c5 2. d3 Nc6 3. Nc3 g6 4. g3 Bg7 5. Bg2 e6 6. f4 Nge7 7. Nf3 O-O 8. O-O d6 9. Ne2 Nd4 {[%emt 0:11:58]} 10. c3 {[%emt 0:04:12]} Nxf3+ {[%emt 0:00:58]} 11. Bxf3 {[%emt 0:00:19]} Rb8 {[%emt 0:02:41]} 12. Be3 {[%emt 0:00:35]} b5 {[%emt 0:01:12]} 13. d4 {[%emt 0:02:20]} Qc7 $11 {[%emt 0:00:34]} 14. Rc1 {[%emt 0:09:03]} Bb7 {[%emt 0:03:29]} 15. b4 {[%emt 0:05:10]} c4 {[%emt 0:07:51]} 16. Qc2 {[%emt 0:10:59]} f5 {[%emt 0:01:44]} 17. Rcd1 {[%emt 0:12:09]} a5 {[%emt 0:03:48]} 18. a3 {[%emt 0:04:24]} Ra8 {[%emt 0:01:43]} 19. d5 {[%emt 0:01:24]} fxe4 {[%emt 0:00:51]} 20. Qxe4 {[%emt 0:09:00]} Bxd5 {[%emt 0:00:25]} 21. Rxd5 {[%emt 0:00:35]} exd5 {[%emt 0:01:08]} 22. Qe6+ {[%emt 0:00:36]} Kh8 {[%emt 0:09:49]} 23. Nd4 {[%emt 0:04:17]} Rae8 {[%emt 0:02:51]} 24. Nxb5 {[%emt 0:00:30]} Qb8 {[%emt 0:00:30]} 25. a4 {[%emt 0:07:05]} Nf5 {[%emt 0:00:50]} 26. Ba7 {[%emt 0:02:59]} Qxa7+ {[%emt 0:02:28]} 27. Nxa7 {[%emt 0:00:18]} Rxe6 {[%emt 0:00:09]} 28. Bxd5 {[%emt 0:00:16]} Ree8 {[%emt 0:02:13]} 29. Bc6 {[%emt 0:02:17]} axb4 {[%emt 0:01:15]} 30. Nb5 {[%emt 0:01:01]} bxc3 {[%emt 0:00:30]} 31. Rd1 {[%emt 0:00:47]} c2 {[%emt 0:00:57]} 0-1

[Event "WYCC 2018 O18"]
[Site "Halkidiki"]
[Date "2018.10.28"]
[Round "9"]
[White "Ioannidis, Evgenios"]
[Black "Alexakis, Dimitris"]
[Result "1-0"]
[ECO "E46"]
[WhiteElo "2407"]
[BlackElo "2186"]
[Annotator "NA"]
[PlyCount "89"]
[EventDate "2018.10.20"]
[EventType "swiss"]
[EventCountry "GRE"]
[SourceTitle "playchess.com"]
[Source "ChessBase"]
[SourceQuality "1"]
[TimeControl "40/5400+30:1800+30"]

1. d4 {[%emt 0:00:00]} Nf6 {[%emt 0:00:00]} 2. c4 {[%emt 0:00:00]} e6 {[%emt 0:02:57]} 3. Nc3 {[%emt 0:00:21]} Bb4 {[%emt 0:00:19]} 4. e3 {[%emt 0:00:28]} O-O {[%emt 0:01:45]} 5. Bd2 {[%emt 0:00:57]} b6 {[%emt 0:10:17]} 6. Nf3 {[%emt 0:02:15]} Bb7 {[%emt 0:00:09]} 7. Bd3 {[%emt 0:01:09]} d6 {[%emt 0:16:07]} 8. O-O {[%emt 0:09:16]} Bxc3 {[%emt 0:17:31]} 9. Bxc3 {[%emt 0:00:10]} Ne4 {[%emt 0:00:22]} 10. Be1 {[%emt 0:02:52]} Nd7 {[%emt 0:01:59]} 11. Nd2 {[%emt 0:01:12]} f5 {[%emt 0:07:33]} 12. f3 $11 {[%emt 0:10:43]} Nxd2 {[%emt 0:12:27]} 13. Bxd2 {[%emt 0:00:49]} Qf6 {[%emt 0:01:36]} 14. b4 {[%emt 0:06:09]} e5 {[%emt 0:07:15]} 15. d5 {[%emt 0:03:03]} c5 {[%emt 0:10:25]} 16. a3 {[%emt 0:24:43]} b5 {[%emt 0:06:15]} 17. e4 {[%emt 0:08:54]} cxb4 {[%emt 0:00:50]} 18. axb4 {[%emt 0:00:30]} fxe4 {[%emt 0:00:34]} 19. fxe4 {[%emt 0:00:19]} Qg6 {[%emt 0:00:31]} 20. Rxf8+ {[%emt 0:02:27]} Nxf8 {[%emt 0:00:22]} 21. Qc2 {[%emt 0:02:08]} bxc4 {[%emt 0:00:41]} 22. Qxc4 {[%emt 0:00:08]} Qf7 {[%emt 0:00:25]} 23. b5 {[%emt 0:08:04]} Nd7 {[%emt 0:00:28]} 24. Be3 {[%emt 0:00:09]} Nc5 {[%emt 0:00:33]} 25. Bxc5 {[%emt 0:01:55]} Rc8 {[%emt 0:00:06]} 26. Qa4 {[%emt 0:00:32]} Rxc5 {[%emt 0:00:21]} 27. Rf1 {[%emt 0:01:01]} Qc7 {[%emt 0:01:08]} 28. b6 {[%emt 0:01:18]} Qd8 {[%emt 0:00:11]} 29. Qxa7 {[%emt 0:00:28]} Qc8 {[%emt 0:00:20]} 30. Ba6 {[%emt 0:03:37]} Rc1 {[%emt 0:00:43]} 31. Qxb7 {[%emt 0:00:26]} Rxf1+ {[%emt 0:00:40]} 32. Kxf1 {[%emt 0:00:06]} Qc1+ {[%emt 0:00:05]} 33. Ke2 {[%emt 0:00:17]} Qc2+ {[%emt 0:00:41]} 34. Ke3 {[%emt 0:01:00]} Qc3+ {[%emt 0:00:46]} 35. Bd3 {[%emt 0:00:17]} Qe1+ {[%emt 0:00:35]} 36. Kf3 {[%emt 0:00:10]} h5 {[%emt 0:00:30]} 37. Qc8+ {[%emt 0:04:49]} Kh7 {[%emt 0:00:02]} 38. b7 {[%emt 0:02:33]} Qd1+ {[%emt 0:00:49]} 39. Ke3 {[%emt 0:00:07]} Qg1+ {[%emt 0:00:38]} 40. Kd2 {[%emt 0:00:00]} Qf2+ {[%emt 0:00:00]} 41. Kc1 {[%emt 0:02:06]} Qe3+ {[%emt 0:04:32]} 42. Kc2 {[%emt 0:00:05]} Qf2+ {[%emt 0:00:07]} 43. Kb3 {[%emt 0:00:05]} Qd4 {[%emt 0:01:50]} 44. Qc4 {[%emt 0:01:10]} Qb6+ {[%emt 0:02:44]} 45. Qb5 {[%emt 0:00:05]} 1-0

[Event "WYCC 2018 O18"]
[Site "Halkidiki"]
[Date "2018.10.28"]
[Round "9"]
[White "Ayats Llobera, Gerard"]
[Black "Liska, Jiri"]
[Result "1-0"]
[ECO "B32"]
[WhiteElo "2399"]
[BlackElo "2245"]
[Annotator "NA"]
[PlyCount "83"]
[EventDate "2018.10.20"]
[EventType "swiss"]
[EventCountry "GRE"]
[SourceTitle "playchess.com"]
[Source "ChessBase"]
[SourceQuality "1"]
[TimeControl "40/5400+30:1800+30"]

1. e4 {[%emt 0:00:00]} c5 {[%emt 0:00:00]} 2. Nf3 {[%emt 0:00:00]} Nc6 {[%emt 0:00:00]} 3. d4 {[%emt 0:00:00]} cxd4 {[%emt 0:00:10]} 4. Nxd4 {[%emt 0:00:00]} d5 {[%emt 0:00:27]} 5. exd5 {[%emt 0:12:55]} Qxd5 6. Be3 e6 {[%emt 0:02:32]} 7. Nc3 {[%emt 0:06:23]} Bb4 {[%emt 0:01:54]} 8. Ndb5 {[%emt 0:01:32]} Qe5 {[%emt 0:02:16]} 9. a3 {[%emt 0:20:05]} Be7 {[%emt 0:03:10]} 10. Qd2 {[%emt 0:05:53]} a6 {[%emt 0:10:10]} 11. f4 {[%emt 0:01:58]} Qb8 $11 {[%emt 0:00:43]} 12. Nd4 {[%emt 0:02:22]} Nf6 {[%emt 0:04:41]} 13. Nb3 {[%emt 0:21:32]} O-O {[%emt 0:06:41]} 14. Bb6 {[%emt 0:00:11]} e5 {[%emt 0:08:41]} 15. Be2 {[%emt 0:09:45]} exf4 {[%emt 0:07:36]} 16. O-O-O {[%emt 0:00:02]} Be6 {[%emt 0:07:21]} 17. Nc5 {[%emt 0:01:00]} Bd8 {[%emt 0:21:30]} 18. Nxe6 {[%emt 0:03:05]} Bxb6 {[%emt 0:00:46]} 19. Nxf4 {[%emt 0:00:06]} Qe5 {[%emt 0:02:54]} 20. Nd3 {[%emt 0:01:07]} Qe7 {[%emt 0:01:36]} 21. Kb1 {[%emt 0:00:12]} Be3 {[%emt 0:02:58]} 22. Qe1 {[%emt 0:00:04]} Rfd8 {[%emt 0:01:59]} 23. Bf3 {[%emt 0:01:55]} Nd4 {[%emt 0:01:42]} 24. Nb4 {[%emt 0:00:25]} Nxf3 25. gxf3 Rxd1+ {[%emt 0:07:06]} 26. Qxd1 {[%emt 0:00:17]} Rd8 {[%emt 0:00:48]} 27. Qe2 {[%emt 0:00:50]} Rd2 {[%emt 0:01:09]} 28. Qe1 {[%emt 0:02:16]} Qc5 {[%emt 0:01:55]} 29. Nd3 {[%emt 0:01:13]} Qd4 {[%emt 0:00:29]} 30. Qg3 {[%emt 0:03:16]} h6 {[%emt 0:02:55]} 31. Qb8+ {[%emt 0:00:10]} Kh7 {[%emt 0:00:06]} 32. Qxb7 {[%emt 0:00:05]} Qc4 {[%emt 0:01:08]} 33. Qb4 {[%emt 0:03:31]} Qc6 {[%emt 0:00:33]} 34. Re1 {[%emt 0:01:38]} Bf2 {[%emt 0:00:26]} 35. Rf1 {[%emt 0:01:31]} Qxf3 {[%emt 0:00:21]} 36. Qc4 {[%emt 0:01:00]} Qg2 {[%emt 0:00:37]} 37. Nf4 {[%emt 0:00:40]} Qxh2 {[%emt 0:00:27]} 38. Nfd5 {[%emt 0:00:38]} Bh4 {[%emt 0:00:37]} 39. Nxf6+ {[%emt 0:00:16]} Bxf6 {[%emt 0:00:23]} 40. Ne4 {[%emt 0:00:00]} Rd7 {[%emt 0:00:00]} 41. Nxf6+ {[%emt 0:01:07]} gxf6 {[%emt 0:01:24]} 42. Qe4+ {[%emt 0:00:01]} 1-0

[Event "WYCC 2018 O18"]
[Site "Halkidiki"]
[Date "2018.10.28"]
[Round "9"]
[White "Miciano, John Marvin"]
[Black "Gholami, Aryan"]
[Result "0-1"]
[ECO "C00"]
[WhiteElo "2361"]
[BlackElo "2493"]
[Annotator "ChessBase"]
[PlyCount "128"]
[EventDate "2018.10.20"]
[EventType "swiss"]
[EventCountry "GRE"]
[SourceTitle "playchess.com"]
[Source "ChessBase"]
[SourceQuality "1"]
[TimeControl "40/5400+30:1800+30"]

1. e4 {[%emt 0:00:00]} e6 {[%emt 0:00:21]} 2. Qe2 {[%emt 0:00:57]} c5 {[%emt 0:01:37]} 3. g3 {[%emt 0:00:47]} Nc6 {[%emt 0:01:09]} 4. Bg2 {[%emt 0:00:17]} g6 {[%emt 0:02:27]} 5. Nf3 {[%emt 0:00:21]} Bg7 {[%emt 0:00:23]} 6. O-O {[%emt 0:01:07]} Nge7 {[%emt 0:00:17]} 7. c3 {[%emt 0:03:43]} d6 {[%emt 0:01:37]} 8. d3 {[%emt 0:02:08]} O-O {[%emt 0:00:21]} 9. Nbd2 {[%emt 0:01:41]} e5 {[%emt 0:11:09]} 10. Nh4 {[%emt 0:02:11]} g5 {[%emt 0:06:51]} 11. Nhf3 {[%emt 0:00:21]} h6 {[%emt 0:01:28]} 12. Nc4 {[%emt 0:02:11]} Be6 {[%emt 0:01:24]} 13. Bxg5 {[%emt 0:34:01]} hxg5 {[%emt 0:00:07]} 14. Nxg5 {[%emt 0:00:07]} Bh6 {[%emt 0:02:01]} 15. Nxe6 {[%emt 0:01:04]} fxe6 {[%emt 0:00:06]} 16. Qg4+ {[%emt 0:04:34]} Kh7 {[%emt 0:06:10]} 17. Qxe6 {[%emt 0:00:26]} Kg7 {[%emt 0:12:20]} 18. Qg4+ {[%emt 0:09:26]} Ng6 {[%emt 0:01:47]} 19. h4 {[%emt 0:01:19]} Kh7 {[%emt 0:01:19]} 20. h5 {[%emt 0:03:02]} Nge7 {[%emt 0:04:57]} 21. a4 {[%emt 0:05:54]} Rf6 {[%emt 0:02:38]} 22. Bh3 {[%emt 0:03:11]} Qe8 {[%emt 0:07:18]} 23. Ne3 {[%emt 0:02:39]} Qf7 {[%emt 0:03:02]} 24. Qe2 {[%emt 0:04:48]} Bxe3 {[%emt 0:04:35]} 25. fxe3 {[%emt 0:00:18]} Rg8 {[%emt 0:02:36]} 26. Rxf6 {[%emt 0:01:26]} Qxf6 {[%emt 0:00:12]} 27. Kh2 {[%emt 0:00:59]} Qg7 {[%emt 0:02:09]} 28. Rg1 {[%emt 0:00:45]} Nd8 {[%emt 0:00:24]} 29. Bd7 {[%emt 0:01:51]} Nf7 {[%emt 0:06:29]} 30. Qf3 {[%emt 0:03:04]} Ng5 {[%emt 0:01:14]} 31. Qe2 {[%emt 0:00:31]} Rf8 {[%emt 0:04:08]} 32. Rf1 {[%emt 0:00:56]} Rxf1 {[%emt 0:00:10]} 33. Qxf1 {[%emt 0:00:05]} Qf7 {[%emt 0:00:06]} 34. Qxf7+ {[%emt 0:01:41]} Nxf7 {[%emt 0:00:04]} 35. Kh3 {[%emt 0:01:14]} Kh6 {[%emt 0:00:51]} 36. Kg4 {[%emt 0:00:14]} Ng5 {[%emt 0:00:20]} 37. c4 {[%emt 0:02:15]} b6 {[%emt 0:09:47]} 38. Be8 {[%emt 0:00:56]} Nh7 {[%emt 0:00:58]} 39. Kh4 Nf6 {[%emt 0:00:44]} 40. Bf7 {[%emt 0:00:00]} Nc6 {[%emt 0:00:00]} 41. Bg6 {[%emt 0:01:51]} Nb4 {[%emt 0:17:05]} 42. g4 {[%emt 0:00:06]} Kg7 {[%emt 0:00:04]} 43. g5 {[%emt 0:05:55]} Ng8 {[%emt 0:00:06]} 44. Be8 {[%emt 0:00:46]} Nxd3 {[%emt 0:00:57]} 45. Kg4 {[%emt 0:00:05]} Nxb2 {[%emt 0:02:14]} 46. Bb5 {[%emt 0:01:03]} Ne7 {[%emt 0:01:39]} 47. h6+ {[%emt 0:05:21]} Kh7 {[%emt 0:04:39]} 48. Kh5 {[%emt 0:00:28]} a5 {[%emt 0:02:04]} 49. Kg4 {[%emt 0:01:57]} Nd1 {[%emt 0:00:37]} 50. Kf3 {[%emt 0:00:22]} Ng6 {[%emt 0:01:38]} 51. Be8 {[%emt 0:00:55]} Nf8 {[%emt 0:01:10]} 52. Bf7 {[%emt 0:02:27]} Nb2 {[%emt 0:00:21]} 53. Ke2 {[%emt 0:01:11]} Nxa4 {[%emt 0:00:46]} 54. Kd2 {[%emt 0:00:58]} Nb2 {[%emt 0:02:45]} 55. Kc2 {[%emt 0:00:14]} Nxc4 {[%emt 0:00:07]} 56. Bxc4 {[%emt 0:00:18]} Kg6 {[%emt 0:00:06]} 57. Kb3 {[%emt 0:00:11]} Kxg5 {[%emt 0:00:16]} 58. Ka4 {[%emt 0:00:09]} Kxh6 {[%emt 0:00:24]} 59. Kb5 {[%emt 0:00:05]} Nd7 {[%emt 0:01:25]} 60. Kc6 {[%emt 0:01:49]} Nf6 {[%emt 0:00:07]} 61. Kxd6 {[%emt 0:01:23]} Ng4 {[%emt 0:00:13]} 62. Bb5 {[%emt 0:01:37]} Kg5 {[%emt 0:00:17]} 63. Kc6 {[%emt 0:00:10]} Nxe3 {[%emt 0:00:09]} 64. Kxb6 {[%emt 0:00:05]} c4 {[%emt 0:00:04]} 0-1